bitfinex-derivatives/quotes_SOLF0:USTF0_20250321
["timestamp","ask_amount","ask_price","bid_price","bid_amount"]
[1742553356019,7.98512675,126.17,126.15,0.06083995]
[1742553356228,0.05522675,126.17,126.16,20.37708035]
[1742553356418,0.05522675,126.17,126.15,0.06083995]
[1742553357625,0.05522675,126.17,126.16,12.44688035]
[1742553358128,0.05522675,126.17,126.16,20.37708035]
[1742553359124,0.05522675,126.17,126.16,12.44688035]
[1742553359729,0.05522675,126.17,126.16,20.37708035]
[1742553360831,0.05522675,126.17,126.16,24.39928035]
[1742553362033,0.05522675,126.17,126.16,4.0222]
[1742553362532,0.05522675,126.17,126.15,0.06083995]
[1742553364631,2.51708659,126.16,126.15,0.06083995]
[1742553364831,2.51708659,126.16,126.15,7.99163995]
[1742553365036,2.51708659,126.16,126.15,0.06083995]
[1742553365235,40.26728659,126.16,126.15,0.06083995]
[1742553365425,57.91572213,126.16,126.15,0.06083995]
[1742553366135,7.9321,126.13,126.09,278.28528035]
[1742553366332,29.86,126.13,126.09,274.16688035]
[1742553366536,7.933,126.12,126.09,274.16688035]
[1742553366936,7.933,126.12,126.09,282.10118035]
[1742553367135,7.98382629,126.12,126.09,282.15259522]
[1742553367331,0.05082629,126.12,126.09,274.21829522]
[1742553367531,0.05082629,126.12,126.1,7.9336]
[1742553367731,0.05082629,126.12,126.09,274.21829522]
[1742553367935,0.05082629,126.12,126.11,20.38018035]
[1742553369128,0.05082629,126.12,126.1,8.3654]
[1742553369331,0.05082629,126.12,126.1,4.2757]
[1742553369537,7.98382629,126.12,126.1,4.2757]
[1742553369738,37.82382629,126.12,126.1,4.2757]
[1742553369935,29.89082629,126.12,126.1,4.2757]
[1742553370742,37.82382629,126.12,126.1,4.2757]
[1742553371636,29.89082629,126.12,126.1,12.2095]
[1742553371830,0.05082629,126.12,126.1,4.2757]
[1742553372032,29.8,126.14,126.1,8.2918]
[1742553372238,29.8,126.14,126.12,7.9323]
[1742553372538,29.8,126.14,126.1,8.2918]
[1742553372734,29.8,126.14,126.11,7.9332]
[1742553373141,29.85777144,126.14,126.11,7.99188704]
[1742553373939,0.05777144,126.14,126.12,7.9327]
[1742553374241,0.05777144,126.14,126.11,19.51054397]
[1742553374436,0.05777144,126.14,126.13,7.9321]
[1742553374642,40.48845619,126.18,126.13,19.45185693]
[1742553375039,40.48845619,126.18,126.15,7.9302]
[1742553375343,40.48845619,126.18,126.13,19.45185693]
[1742553375534,2.51787271,126.17,126.13,19.45185693]
[1742553375843,10.68845619,126.18,126.15,19.45185693]
[1742553376036,29.8,126.2,126.15,49.25185693]
[1742553376544,29.8,126.2,126.15,29.8]
[1742553376842,29.8,126.2,126.14,0.05520808]
[1742553377238,7.929,126.18,126.14,7.98640808]
[1742553377437,29.8,126.2,126.14,0.05520808]
[1742553377644,12.36600109,126.19,126.14,0.05520808]
[1742553377844,5.20435458,126.18,126.14,0.05520808]
[1742553378142,35.08435458,126.17,126.14,0.05520808]
[1742553378342,7.9305,126.16,126.14,0.05520808]
[1742553378644,29.88,126.17,126.14,0.05520808]
[1742553379150,37.8099,126.17,126.14,0.05520808]
[1742553379451,29.88,126.17,126.14,0.05520808]
[1742553379750,7.9305,126.16,126.14,0.05520808]
[1742553380541,29.88,126.17,126.14,0.05520808]
[1742553380741,42.77962113,126.2,126.14,29.91520808]
[1742553381051,5.20791123,126.19,126.15,19.45185693]
[1742553381246,42.77962113,126.2,126.15,19.45185693]
[1742553381446,5.20666882,126.19,126.15,19.45185693]
[1742553381746,50.70752113,126.2,126.16,7.9297]
[1742553382143,42.77962113,126.2,126.17,0.05599471]
[1742553383055,42.77962113,126.2,126.17,29.89599471]
[1742553383257,72.61962113,126.22,126.17,29.89599471]
[1742553383449,5.21029422,126.21,126.18,7.9285]
[1742553383646,5.21029422,126.2,126.18,7.9285]
[1742553383850,72.59962113,126.22,126.17,0.05599471]
[1742553384047,5.21022053,126.21,126.17,0.05599471]
[1742553384248,5.21022053,126.2,126.17,0.05599471]
[1742553384452,72.59962113,126.22,126.17,0.05599471]
[1742553384651,5.21051497,126.21,126.17,7.98549471]
[1742553384851,5.21051497,126.2,126.17,7.98549471]
[1742553385145,5.21124146,126.19,126.17,7.98549471]
[1742553385355,42.77962113,126.23,126.18,49.29185693]
[1742553385543,42.77962113,126.23,126.2,19.45185693]
[1742553386055,42.77962113,126.23,126.22,7.9264]
[1742553386354,156.25210023,126.25,126.22,7.9264]
[1742553386355,129.85760023,126.25,126.22,310.93185693]
[1742553386555,129.85760023,126.25,126.24,27.37705693]
[1742553387554,158.79705329,126.3,126.26,7.9235]
[1742553387957,158.79705329,126.3,126.27,0.05525556]
[1742553388857,158.79705329,126.3,126.27,7.97825556]
[1742553389250,158.79705329,126.3,126.27,0.05525556]
[1742553390053,166.71875329,126.3,126.27,0.05525556]
[1742553390459,158.79705329,126.3,126.27,0.05525556]
[1742553390662,30.2499,126.3,126.27,0.05525556]
[1742553391360,38.1714,126.3,126.27,0.05525556]
[1742553391953,30.2499,126.3,126.27,0.05525556]
[1742553393353,30.2499,126.3,126.22,281.07185693]
[1742553393550,30.2499,126.3,126.22,261.62]
[1742553393753,19.45185693,126.29,126.22,261.62]
[1742553394153,2.49193163,126.28,126.22,269.5461]
[1742553394355,29.96,126.27,126.22,269.5461]
[1742553394554,0.05046209,126.26,126.24,0.05860292]
[1742553394754,0.05046209,126.26,126.18,19.45185693]
[1742553394955,19.45185693,126.25,126.17,261.48]
[1742553395156,7.9274,126.21,126.17,261.48]
[1742553395459,29.96,126.21,126.17,261.48]
[1742553395658,29.96,126.21,126.18,7.9289]
[1742553395954,0.05414835,126.2,126.18,0.05652872]
[1742553396354,7.98224835,126.2,126.18,0.05652872]
[1742553396954,7.9283,126.19,126.18,0.05652872]
[1742553397354,0.05414835,126.2,126.18,0.05652872]
[1742553397554,7.98214835,126.2,126.18,0.05652872]
[1742553398163,0.05414835,126.2,126.17,261.48]
[1742553398460,0.05414835,126.2,126.12,261.48]
[1742553398760,53.69365693,126.21,126.13,7.9318]
[1742553398960,5.17280245,126.2,126.13,7.9318]
[1742553399257,7.66045511,126.2,126.13,7.9318]
[1742553399456,0.05879874,126.18,126.15,0.05083938]
[1742553399663,49.37185693,126.17,126.12,261.48]
[1742553399866,7.9305,126.16,126.12,261.48]
[1742553400362,7.9308,126.15,126.12,261.48]
[1742553400559,49.37185693,126.17,126.12,261.48]
[1742553400960,7.98651788,126.16,126.13,0.05638126]
[1742553401664,7.9309,126.15,126.13,0.05638126]
[1742553401964,29.92,126.14,126.13,0.05638126]
[1742553403064,37.8515,126.14,126.13,0.05638126]
[1742553403269,29.92,126.14,126.12,261.48]
[1742553403564,29.92,126.14,126.08,29.88]
[1742553404064,29.92,126.14,126.07,281.01185693]
[1742553404363,0.05529592,126.12,126.09,0.05806396]
[1742553405067,0.05529592,126.12,126.09,7.99246396]
[1742553407361,0.05529592,126.12,126.1,7.9339]
[1742553407667,0.05529592,126.12,126.09,0.05806396]
[1742553408061,7.98839592,126.12,126.09,0.05806396]
[1742553408566,0.05529592,126.12,126.09,0.05806396]
[1742553408770,29.78,126.11,126.09,0.05806396]
[1742553409767,37.7138,126.11,126.09,0.05806396]
[1742553409967,29.78,126.11,126.09,0.05806396]
[1742553410268,37.7137,126.11,126.09,0.05806396]
[1742553410663,29.78,126.11,126.09,0.05806396]
[1742553410865,7.934,126.1,126.09,0.05806396]
[1742553411362,29.78,126.11,126.09,0.05806396]
[1742553412160,0.05529592,126.12,126.09,0.05806396]
[1742553412557,0.05529592,126.12,126.11,7.9333]
[1742553413362,0.05529592,126.12,126.1,7.9336]
[1742553413561,0.05529592,126.12,126.09,0.05806396]
[1742553414569,29.8,126.11,126.09,0.05806396]
[1742553414767,37.7337,126.11,126.09,0.05806396]
[1742553415071,29.8,126.11,126.09,0.05806396]
[1742553415263,0.05529592,126.12,126.09,0.05806396]
[1742553415567,0.05529592,126.12,126.1,7.9337]
[1742553415964,0.05529592,126.12,126.09,0.05806396]
[1742553416169,0.05529592,126.12,126.09,49.28992089]
[1742553416566,0.05529592,126.12,126.11,7.9333]
[1742553420068,0.05529592,126.12,126.09,29.83806396]
[1742553420371,29.79529592,126.12,126.09,0.05806396]
[1742553421466,4.2612,126.11,126.09,0.05806396]
[1742553421672,23.71305693,126.11,126.07,261.56]
[1742553421974,19.45185693,126.09,126.02,261.68]
[1742553422266,33.8241,126.08,126.02,261.68]
[1742553422471,7.9379,126.04,126.02,261.68]
[1742553422669,29.8,126.04,126.01,7.9396]
[1742553422863,29.85806189,126.04,126.02,0.05938058]
[1742553423070,29.85806189,126.04,125.97,310.95185693]
[1742553423372,29.85806189,126.04,126.02,0.06006022]
[1742553423573,29.85806189,126.04,125.97,310.93185693]
[1742553423877,29.85806189,126.04,126.0,7.9399]
[1742553424176,29.85806189,126.04,125.99,0.05659455]
[1742553425077,29.85806189,126.04,126.0,29.76]
[1742553425272,0.05806189,126.04,126.03,7.9384]
[1742553427071,29.76,126.08,126.02,0.05708634]
[1742553427268,4.0975,126.09,126.03,291.54]
[1742553427468,4.2612,126.11,126.03,295.6873]
[1742553427974,34.154,126.12,126.04,31.15827396]
[1742553428168,29.76,126.12,126.1,7.9335]
[1742553428368,0.05249183,126.09,126.07,29.83261569]
[1742553428569,29.76,126.12,126.07,29.83628694]
[1742553428769,0.06083035,126.09,126.07,29.83628694]
[1742553429270,0.06083035,126.09,126.07,7.99178694]
[1742553429471,0.06083035,126.09,126.07,0.05628694]
[1742553429872,29.82,126.15,126.08,29.82]
[1742553430272,7.9317,126.14,126.1,7.9337]
[1742553430668,29.82,126.15,126.08,29.82]
[1742553431168,0.05422174,126.13,126.1,0.05676388]
[1742553431369,0.05422174,126.13,126.12,7.9327]
[1742553431777,0.05422174,126.13,126.1,0.05676388]
[1742553433578,0.05422174,126.13,126.1,7.99056388]
[1742553433777,0.05422174,126.13,126.1,0.05676388]
[1742553434076,0.05422174,126.13,126.11,7.9333]
[1742553434278,0.05422174,126.13,126.1,0.05676388]
[1742553434780,0.05422174,126.13,126.12,7.9327]
[1742553436985,29.72,126.19,126.16,7.9302]
[1742553437285,4.03,126.21,126.14,29.72]
[1742553437477,33.75,126.21,126.17,7.9291]
[1742553437682,2.48720792,126.2,126.17,7.9291]
[1742553438081,2.53950206,126.2,126.17,7.98216506]
[1742553438389,0.05229414,126.2,126.17,0.05306506]
[1742553439086,0.05229414,126.2,126.17,7.98256506]
[1742553439287,2.54358409,126.2,126.17,7.98256506]
[1742553439789,2.49128995,126.19,126.17,0.05306506]
[1742553440484,0.05229414,126.2,126.17,0.05306506]
[1742553441389,7.9289,126.18,126.17,0.05306506]
[1742553441787,40.10296629,126.18,126.17,0.05306506]
[1742553443086,32.17406629,126.18,126.17,0.05306506]
[1742553443596,29.68,126.18,126.17,0.05306506]
[1742553443785,37.66029414,126.2,126.17,0.05306506]
[1742553443981,37.66029414,126.2,126.17,7.98266506]
[1742553444188,2.49519862,126.19,126.17,7.98266506]
[1742553444486,37.66029414,126.2,126.17,0.05306506]
[1742553444687,7.9284,126.19,126.17,0.05306506]
[1742553446187,37.66029414,126.2,126.17,0.05306506]
[1742553446393,29.73229414,126.2,126.17,0.05306506]
[1742553446693,10.42235629,126.19,126.17,0.05306506]
[1742553447088,7.9289,126.18,126.17,0.05306506]
[1742553447793,2.49243474,126.18,126.17,0.05306506]
[1742553448693,37.5487,126.19,126.17,0.05306506]
[1742553449800,7.9289,126.18,126.17,0.05306506]
[1742553450002,29.62,126.19,126.17,0.05306506]
[1742553450495,37.5487,126.19,126.17,0.05306506]
[1742553450697,29.62,126.19,126.17,0.05306506]
[1742553450896,29.62,126.19,126.17,7.98226506]
[1742553451791,29.62,126.19,126.18,7.9289]
[1742553451991,7.97999414,126.2,126.17,0.05306506]
[1742553452191,0.05229414,126.2,126.17,0.05306506]
[1742553452391,0.05229414,126.2,126.17,7.98226506]
[1742553453398,0.05229414,126.2,126.18,7.9289]
[1742553455500,0.05229414,126.2,126.17,7.98226506]
[1742553455795,0.05229414,126.2,126.17,0.05306506]
[1742553456294,2.54215322,126.2,126.15,261.7]
[1742553456894,7.9294,126.18,126.15,261.7]
[1742553457100,29.58,126.17,126.15,261.7]
[1742553457296,29.58,126.17,126.15,269.6305]
[1742553457500,37.5678627,126.17,126.15,269.69006252]
[1742553457799,29.6380627,126.17,126.15,261.75956252]
[1742553458699,37.5680627,126.17,126.15,261.75956252]
[1742553458900,37.5680627,126.17,126.15,269.69026252]
[1742553459297,37.5680627,126.17,126.15,261.75956252]
[1742553459498,7.9302,126.16,126.15,261.75956252]
[1742553459901,29.6380627,126.17,126.15,261.75956252]
[1742553460801,37.5679627,126.17,126.15,261.75956252]
[1742553461002,37.5679627,126.17,126.15,0.05956252]
[1742553461801,29.6380627,126.17,126.15,0.05956252]
[1742553462099,0.0580627,126.17,126.16,7.9302]
[1742553467003,4.03,126.21,126.18,7.9285]
[1742553467395,128.54715329,126.28,126.19,19.4396913]
[1742553467396,29.58,126.24,126.19,19.4396913]
[1742553467596,2.49406366,126.23,126.21,7.9268]
[1742553467797,2.49406366,126.23,126.2,29.58]
[1742553467998,80.00305973,126.26,126.2,29.58]
[1742553468296,0.05932773,126.23,126.2,29.63510849]
[1742553468999,0.05932773,126.23,126.21,19.4396913]
[1742553470805,0.05932773,126.23,126.21,27.3666913]
[1742553471403,0.05932773,126.23,126.21,19.4396913]
[1742553472507,0.05932773,126.23,126.21,27.3666913]
[1742553472708,0.05932773,126.23,126.21,19.4396913]
[1742553473001,0.05932773,126.23,126.21,27.3664913]
[1742553473501,0.05932773,126.23,126.21,19.4396913]
[1742553474606,0.05932773,126.23,126.21,27.3667913]
[1742553476408,0.05932773,126.23,126.22,7.9264]
[1742553476707,0.05932773,126.23,126.21,19.4396913]
[1742553478109,0.05932773,126.23,126.22,7.9264]
[1742553478407,0.05932773,126.23,126.21,19.4396913]
[1742553478701,0.05932773,126.23,126.21,27.3663913]
[1742553480016,7.98532773,126.23,126.21,19.4396913]
[1742553480313,0.05932773,126.23,126.2,0.05510849]
[1742553481111,0.05932773,126.23,126.21,7.9268]
[1742553481713,0.05932773,126.23,126.22,7.9264]
[1742553482908,29.58,126.28,126.21,19.4396913]
[1742553483214,4.4018,126.29,126.23,19.4396913]
[1742553483409,4.4018,126.29,126.24,261.46]
[1742553483609,2.50367081,126.28,126.26,7.9233]
[1742553483815,2.50367081,126.28,126.24,261.46]
[1742553484010,2.50367081,126.28,126.25,7.9242]
[1742553484313,10.48514851,126.27,126.25,0.05390885]
[1742553484511,0.0578777,126.27,126.25,0.05390885]
[1742553484704,29.6378777,126.27,126.25,0.05390885]
[1742553484906,2.50195296,126.26,126.25,0.05390885]
[1742553485109,10.42585296,126.26,126.25,0.05390885]
[1742553487115,7.9245,126.25,126.24,261.46]
[1742553487815,14.70345296,126.26,126.24,261.46]
[1742553488014,2.50195296,126.25,126.24,261.46]
[1742553488317,2.50195296,126.25,126.23,0.05773345]
[1742553488817,0.05862763,126.25,126.23,0.05773345]
[1742553489015,7.9252,126.24,126.23,0.05773345]
[1742553489415,0.05862763,126.25,126.23,0.05773345]
[1742553489613,7.9252,126.24,126.23,0.05773345]
[1742553491523,37.5052,126.24,126.23,0.05773345]
[1742553492917,29.58,126.24,126.23,0.05773345]
[1742553493316,0.05862763,126.25,126.23,0.05773345]
[1742553493513,7.98322763,126.25,126.23,0.05773345]
[1742553494821,0.05862763,126.25,126.23,0.05773345]
[1742553495429,7.9252,126.24,126.23,0.05773345]
[1742553495626,0.05862763,126.25,126.23,0.05773345]
[1742553496124,7.9252,126.24,126.23,0.05773345]
[1742553497436,7.98352763,126.25,126.23,0.05773345]
[1742553498329,7.9252,126.24,126.23,0.05773345]
[1742553499132,7.98352763,126.25,126.23,0.05773345]
[1742553501034,0.05862763,126.25,126.23,0.05773345]
[1742553501937,2.50055995,126.24,126.23,0.05773345]
[1742553502236,10.42575995,126.24,126.23,0.05773345]
[1742553502437,2.50055995,126.24,126.23,0.05773345]
[1742553502737,2.50055995,126.24,126.23,7.98353345]
[1742553503131,0.05862763,126.25,126.24,7.9252]
[1742553504635,0.05862763,126.25,126.24,27.3648913]
[1742553505642,46.90065973,126.29,126.28,7.9227]
[1742553505843,4.4018,126.29,126.28,7.9227]
[1742553506139,4.4018,126.29,126.25,261.46]
[1742553506448,6.9082689,126.29,126.25,261.46]
[1742553506644,4.4018,126.29,126.27,7.923]
[1742553506844,0.06013031,126.28,126.27,7.923]
[1742553507044,0.06013031,126.28,126.26,0.05290164]
[1742553507737,37.54313031,126.28,126.26,0.05290164]
[1742553508340,29.62013031,126.28,126.26,0.05290164]
[1742553508844,2.50785125,126.27,126.26,0.05290164]
[1742553509545,2.50785125,126.27,126.26,7.97680164]
[1742553510141,2.50785125,126.27,126.26,0.05290164]
[1742553511446,2.50785125,126.27,126.26,7.97680164]
[1742553511650,2.50785125,126.27,126.26,0.05290164]
[1742553513049,2.50785125,126.27,126.26,7.97680164]
[1742553514048,0.06013031,126.28,126.26,7.97680164]
[1742553517159,7.98303031,126.28,126.26,0.05290164]
[1742553517555,0.06013031,126.28,126.26,0.05290164]
[1742553517752,10.43209982,126.27,126.26,0.05290164]
[1742553518558,2.50879982,126.27,126.26,0.05290164]
[1742553519457,2.50879982,126.27,126.26,7.97680164]
[1742553519655,2.50879982,126.27,126.26,49.95551986]
[1742553519854,0.06013031,126.28,126.26,42.03161986]
[1742553520049,0.06013031,126.28,126.27,7.9233]
[1742553524260,0.06013031,126.28,126.26,7.97650164]
[1742553525064,0.06013031,126.28,126.27,7.9233]
[1742553528875,0.06013031,126.28,126.26,7.97650164]
[1742553529268,0.06013031,126.28,126.26,0.05290164]
[1742553529471,0.06013031,126.28,126.26,7.97650164]
[1742553529771,0.06013031,126.28,126.26,0.05290164]
[1742553529973,4.12203031,126.28,126.26,0.05290164]
[1742553530169,12.04503031,126.28,126.26,0.05290164]
[1742553531069,7.9233,126.27,126.26,0.05290164]
[1742553532073,39.97638914,126.27,126.26,0.05290164]
[1742553537577,32.05308914,126.27,126.26,0.05290164]
[1742553537783,2.49308914,126.27,126.26,0.05290164]
[1742553538274,0.06013031,126.28,126.26,0.05290164]
[1742553538680,0.06013031,126.28,126.26,7.97680164]
[1742553539778,0.06013031,126.28,126.27,7.9233]
[1742553540380,2.55599692,126.28,126.27,7.9233]
[1742553540678,2.55599692,126.28,126.26,7.97650164]
[1742553540977,2.55599692,126.28,126.26,0.05290164]
[1742553541179,0.06013031,126.28,126.26,0.05290164]
[1742553541680,2.49596844,126.27,126.26,0.05290164]
[1742553543971,10.41926844,126.27,126.26,0.05290164]
[1742553546682,2.49596844,126.27,126.26,0.05290164]
[1742553548677,10.41926844,126.27,126.26,0.05290164]
[1742553550482,2.49596844,126.27,126.26,0.05290164]
[1742553550882,2.49596844,126.27,126.26,12.47358833]
[1742553551385,0.06013031,126.28,126.26,12.47358833]
[1742553552086,0.06013031,126.28,126.27,7.9233]
[1742553552382,0.06013031,126.28,126.27,20.34398669]
[1742553555992,0.06013031,126.28,126.26,12.47358833]
[1742553556183,7.98313031,126.28,126.26,12.47358833]
[1742553556387,0.06013031,126.28,126.26,0.05290164]
[1742553556880,0.06013031,126.28,126.26,12.47358833]
[1742553557492,0.06013031,126.28,126.26,20.39708833]
[1742553557687,0.06013031,126.28,126.26,12.47358833]
[1742553557986,0.06013031,126.28,126.27,7.9233]
[1742553558897,4.0751,126.32,126.26,12.47358833]
[1742553559094,4.0751,126.32,126.3,12.42068669]
[1742553559397,29.54,126.34,126.31,12.42068669]
[1742553559592,42.49885973,126.35,126.33,12.42068669]
[1742553559995,42.53224309,126.35,126.33,12.4775787]
[1742553560801,42.53224309,126.35,126.33,20.3970787]
[1742553560998,0.03338336,126.35,126.33,12.4775787]
[1742553563000,7.95168336,126.35,126.33,12.4775787]
[1742553563598,2.48210244,126.34,126.33,12.4775787]
[1742553566902,2.48210244,126.34,126.32,7.9201]
[1742553566903,44.44278913,126.34,126.28,261.38]
[1742553567097,7.9219,126.3,126.28,261.38]
[1742553567294,7.9219,126.3,126.2,16.1702]
[1742553567295,12.42068669,126.29,126.22,261.3]
[1742553567496,12.42068669,126.29,126.24,7.9252]
[1742553567497,7.9236,126.27,126.24,7.9252]
[1742553567698,7.9236,126.27,126.22,273.72068669]
[1742553567898,7.97687231,126.27,126.24,0.0609476]
[1742553568102,7.924,126.26,126.24,0.0609476]
[1742553568499,29.59327231,126.27,126.24,0.0609476]
[1742553568706,42.013959,126.27,126.24,0.0609476]
[1742553569101,2.47853306,126.26,126.24,0.0609476]
[1742553569505,2.47853306,126.25,126.24,0.0609476]
[1742553572704,29.59327231,126.27,126.24,0.0609476]
[1742553573003,37.51687231,126.27,126.24,0.0609476]
[1742553573200,2.47727967,126.26,126.24,0.0609476]
[1742553573402,2.47727967,126.26,126.24,7.9859476]
[1742553573598,2.47727967,126.26,126.24,0.0609476]
[1742553573801,0.05327231,126.27,126.24,19.47497363]
[1742553574003,80.79755973,126.33,126.26,19.41402603]
[1742553574405,2.47907768,126.32,126.28,7.9223]
[1742553574910,2.47907768,126.31,126.28,7.9223]
[1742553575310,0.03700305,126.31,126.28,7.97280476]
[1742553575610,0.03700305,126.31,126.29,7.922]
[1742553576415,0.03700305,126.31,126.3,7.9214]
[1742553576610,0.03700305,126.31,126.28,0.05050476]
[1742553576911,0.03700305,126.31,126.29,7.9217]
[1742553577906,0.03700305,126.31,126.3,7.9214]
[1742553582603,2.48052514,126.34,126.33,7.9195]
[1742553582812,29.52,126.36,126.3,19.41402603]
[1742553583113,29.52,126.36,126.31,29.52]
[1742553583413,29.52,126.36,126.34,7.9186]
[1742553584011,29.52,126.36,126.34,0.05845343]
[1742553584311,2.48017541,126.35,126.34,0.05845343]
[1742553584501,2.48017541,126.35,126.34,7.97735343]
[1742553584705,29.52,126.36,126.34,0.05845343]
[1742553585507,29.52,126.36,126.34,7.97725343]
[1742553586010,29.52,126.36,126.34,0.05845343]
[1742553586507,4.3086,126.37,126.34,0.05845343]
[1742553587209,12.226,126.37,126.34,0.05845343]
[1742553587514,41.746,126.37,126.34,0.05845343]
[1742553588215,2.47867281,126.36,126.35,7.9183]
[1742553588413,4.3086,126.37,126.35,7.9183]
[1742553590410,29.52,126.39,126.36,7.9176]
[1742553590609,29.52,126.39,126.36,20.3183722]
[1742553590812,2.47865233,126.38,126.36,12.4007722]
[1742553591409,2.47865233,126.39,126.36,12.4007722]
[1742553591616,2.47865233,126.39,126.36,20.3180722]
[1742553591815,2.47865233,126.39,126.38,12.4007722]
[1742553592013,7.9148,126.41,126.38,12.4007722]
[1742553592214,4.427,126.42,126.38,12.4007722]
[1742553592416,2.4794356,126.4,126.38,12.45878692]
[1742553592608,10.3943356,126.41,126.38,12.45878692]
[1742553593006,7.9149,126.41,126.38,12.45878692]
[1742553593208,12.3412,126.42,126.38,20.37488692]
[1742553594219,2.47788269,126.41,126.39,7.9158]
[1742553595823,10.39248269,126.41,126.38,20.37488692]
[1742553596014,7.9146,126.41,126.38,20.37488692]
[1742553596516,7.9146,126.41,126.39,7.9157]
[1742553596918,4.427,126.42,126.38,12.45878692]
[1742553597117,4.427,126.42,126.4,7.9148]
[1742553597518,4.427,126.42,126.38,12.45878692]
[1742553597823,4.427,126.42,126.38,20.37488692]
[1742553598010,7.9148,126.41,126.38,20.37488692]
[1742553598215,4.427,126.42,126.39,7.9154]
[1742553598515,12.3413,126.42,126.39,7.9154]
[1742553599120,7.9145,126.41,126.39,7.9154]
[1742553599520,7.9145,126.41,126.38,20.37478692]
[1742553599919,4.427,126.42,126.38,20.37478692]
[1742553600117,4.427,126.42,126.38,12.45878692]
[1742553601817,4.427,126.42,126.38,20.37518692]
[1742553602122,50.3667722,126.43,126.38,20.37518692]
[1742553602419,7.9145,126.41,126.38,20.37518692]
[1742553602917,7.9145,126.41,126.38,12.45878692]
[1742553603121,7.9152,126.4,126.38,12.45878692]
[1742553603325,50.3667722,126.43,126.38,12.45878692]
[1742553603619,8.446,126.43,126.38,12.45878692]
[1742553603812,4.3374,126.43,126.4,12.4007722]
[1742553604219,12.2511,126.43,126.4,12.4007722]
[1742553606024,16.7381722,126.43,126.38,12.45878692]
[1742553606522,7.9157,126.4,126.38,12.45878692]
[1742553606726,16.7381722,126.43,126.38,12.45878692]
[1742553607221,7.915,126.41,126.38,12.45878692]
[1742553607422,16.7381722,126.43,126.38,12.45878692]
[1742553607619,7.9153,126.4,126.38,12.45878692]
[1742553607814,29.5,126.41,126.38,0.05801472]
[1742553608017,12.4007722,126.39,126.27,261.14]
[1742553608216,7.9192,126.34,126.31,7.9205]
[1742553608413,41.9007722,126.34,126.29,12.4007722]
[1742553608623,7.9198,126.33,126.29,12.4007722]
[1742553608814,29.5,126.34,126.29,12.4007722]
[1742553609018,29.5,126.34,126.31,12.4007722]
[1742553609225,0.05456994,126.33,126.3,0.05242578]
[1742553609913,0.05456994,126.33,126.3,7.97352578]
[1742553610118,0.05456994,126.33,126.3,0.05242578]
[1742553610323,0.05456994,126.33,126.31,7.9202]
[1742553610520,0.05456994,126.33,126.3,0.05242578]
[1742553610722,0.05456994,126.33,126.31,19.38455656]
[1742553610917,0.05456994,126.33,126.32,37.4202]
[1742553611621,29.5,126.38,126.32,29.5]
[1742553611823,29.5,126.38,126.34,19.38455656]
[1742553612224,37.4169,126.38,126.34,27.30315656]
[1742553612522,29.5,126.38,126.34,19.38455656]
[1742553612827,29.5,126.38,126.35,0.05265362]
[1742553613523,37.4167,126.38,126.35,0.05265362]
[1742553614224,7.9171,126.37,126.35,0.05265362]
[1742553614823,29.5,126.38,126.35,0.05265362]
[1742553615330,7.917,126.37,126.35,0.05265362]
[1742553615625,29.5,126.38,126.35,0.05265362]
[1742553615825,7.9176,126.36,126.35,0.05265362]
[1742553617626,2.47671618,126.36,126.35,0.05265362]
[1742553618120,7.9174,126.37,126.35,7.97095362]
[1742553618320,7.9174,126.37,126.35,0.05265362]
[1742553619021,2.47789687,126.36,126.35,0.05265362]
[1742553619222,10.39549687,126.36,126.35,0.05265362]
[1742553621431,7.9176,126.36,126.35,0.05265362]
[1742553621628,10.39812634,126.36,126.35,0.05265362]
[1742553622933,7.9189,126.34,126.33,261.18]
[1742553623321,29.5,126.35,126.23,15.8507]
[1742553623630,48.88455656,126.35,126.28,261.22]
[1742553623932,7.9204,126.32,126.3,0.05407155]
[1742553624327,0.0529348,126.33,126.3,0.05407155]
[1742553624527,7.9727348,126.33,126.31,7.9204]
[1742553624825,0.0529348,126.33,126.3,0.05407155]
[1742553625132,0.0529348,126.33,126.3,19.43862811]
[1742553626326,0.0529348,126.33,126.32,19.38455656]
[1742553626729,0.0529348,126.33,126.32,56.80475656]
[1742553630530,0.0529348,126.33,126.32,106.80475656]
[1742553630736,7.9167,126.38,126.33,7.9192]
[1742553630935,29.5,126.39,126.34,19.38455656]
[1742553631138,2.48459809,126.37,126.34,27.30305656]
[1742553631334,29.5,126.39,126.34,27.30305656]